bitfinex/quotes_SOLUSD_20250101
["timestamp","ask_amount","ask_price","bid_price","bid_amount"]
[1735715077864,8.24209503,190.41,190.33,23.776884]
[1735715077865,14.52549503,190.41,190.33,23.776884]
[1735715078063,14.52549503,190.41,190.34,0.7878027]
[1735715078467,6.2834,190.41,190.34,0.7878027]
[1735715081980,0.70870705,190.4,190.32,60.79805329]
[1735715082678,0.70870705,190.4,190.31,24.56480154]
[1735715082876,13.83890705,190.4,190.3,60.79805329]
[1735715085461,8.1106,190.39,190.29,61.58606988]
[1735715085655,0.70870705,190.38,190.29,61.58606988]
[1735715087771,0.70870705,190.38,190.29,0.78801659]
[1735715087974,8.1106,190.33,190.21,69.00531988]
[1735715088156,8.79908807,190.32,190.21,69.00531988]
[1735715088350,15.6509679,190.32,190.21,69.00531988]
[1735715088958,28.7870679,190.32,190.21,69.00531988]
[1735715089654,28.7870679,190.32,190.21,60.79805329]
[1735715091477,28.7870679,190.32,190.2,23.776884]
[1735715091674,28.7870679,190.32,190.2,24.56527506]
[1735715093768,28.7870679,190.32,190.2,35.18878281]
[1735715094483,28.7870679,190.32,190.2,95.9868361]
[1735715094687,28.7870679,190.32,190.2,95.19844504]
[1735715095992,28.7870679,190.32,190.22,23.776884]
[1735715096891,14.94226085,190.32,190.24,23.776884]
[1735715097104,14.94226085,190.32,190.25,0.78819405]
[1735715098892,14.94226085,190.32,190.24,84.57493729]
[1735715101713,0.70870705,190.31,190.24,60.79805329]
[1735715102078,6.85187983,190.3,190.24,60.79805329]
[1735715103115,0.70870705,190.29,190.24,60.79805329]
[1735715103422,7.56058688,190.29,190.24,60.79805329]
[1735715103604,7.56058688,190.29,190.22,23.776884]
[1735715103913,6.85187983,190.28,190.22,23.776884]
[1735715105231,6.85187983,190.28,190.23,0.78835551]
[1735715108218,21.93488807,190.32,190.24,23.776884]
[1735715108219,8.09038102,190.32,190.24,23.776884]
[1735715108387,8.09038102,190.32,190.25,61.58618899]
[1735715108699,8.1106,190.33,190.25,61.58618899]
[1735715109617,8.1106,190.33,190.25,60.79805329]
[1735715110290,8.1106,190.33,190.26,23.776884]
[1735715110477,8.1106,190.33,190.27,0.78810261]
[1735715112906,8.1106,190.33,190.25,61.5861697]
[1735715114294,0.70870705,190.32,190.25,60.79805329]
[1735715115713,0.70870705,190.32,190.23,60.79805329]
[1735715116212,0.70870705,190.32,190.24,0.78825677]
[1735715117392,0.70870705,190.32,190.23,60.79805329]
[1735715118899,8.79860541,190.32,190.23,60.79805329]
[1735715120218,8.79860541,190.32,190.24,0.78828533]
[1735715120893,8.08989836,190.32,190.24,0.78828533]
[1735715121520,8.08989836,190.32,190.24,61.58633862]
[1735715123396,8.08989836,190.32,190.25,23.776884]
[1735715123718,8.08989836,190.32,190.26,0.78816182]
[1735715123898,8.1106,190.33,190.26,0.78816182]
[1735715129216,8.1106,190.33,190.25,84.57493729]
[1735715130019,8.1106,190.33,190.25,85.36313748]
[1735715130913,8.1106,190.33,190.25,84.57493729]
[1735715138226,8.1106,190.33,190.25,85.36311437]
[1735715141225,8.1106,190.33,190.25,93.47371437]
[1735715141531,8.1106,190.33,190.25,92.68553729]
[1735715142625,8.1106,190.33,190.27,84.57493729]
[1735715144332,8.1106,190.33,190.27,60.79805329]
[1735715145738,8.1106,190.33,190.25,60.79805329]
[1735715145922,8.1106,190.33,190.26,0.78815973]
[1735715151642,8.1106,190.33,190.26,61.58621302]
[1735715160337,8.1106,190.33,190.27,23.776884]
[1735715160550,8.1106,190.33,190.28,0.7880548]
[1735715161430,8.1106,190.33,190.27,84.57493729]
[1735715163572,8.1106,190.33,190.27,60.79805329]
[1735715163864,8.1106,190.33,190.25,61.58614008]
[1735715164160,8.1106,190.33,190.26,23.776884]
[1735715166686,8.1106,190.33,190.26,84.57493729]
[1735715166864,8.1106,190.33,190.26,85.36308688]
[1735715167785,8.1106,190.33,190.26,84.57493729]
[1735715168386,8.1106,190.33,190.26,60.79805329]
[1735715168592,16.90920541,190.33,190.26,60.79805329]
[1735715169793,16.90920541,190.33,190.24,60.79805329]
[1735715170304,30.04460541,190.33,190.22,79.82841565]
[1735715170471,8.08989836,190.32,190.22,60.79805329]
[1735715170671,0.70870705,190.31,190.22,60.79805329]
[1735715171307,6.0021,190.3,190.22,60.79805329]
[1735715171602,0.70870705,190.29,190.22,60.79805329]
[1735715171792,0.70870705,190.29,190.21,23.776884]
[1735715172403,0.70870705,190.29,190.2,60.79805329]
[1735715172569,1.5739,190.28,190.2,60.79805329]
[1735715172970,1.5739,190.28,190.2,61.58647401]
[1735715173182,1.5739,190.28,190.2,72.20998176]
[1735715173678,1.5739,190.28,190.21,23.776884]
[1735715173863,1.5739,190.28,190.23,34.40039175]
[1735715174068,6.0021,190.3,190.24,0.78823776]
[1735715178802,6.0021,190.3,190.24,61.58629105]
[1735715191129,6.0021,190.3,190.24,60.79805329]
[1735715191336,6.71080705,190.3,190.24,60.79805329]
[1735715192914,6.0021,190.3,190.24,60.79805329]
[1735715193723,6.0021,190.3,190.21,11.41180982]
[1735715194448,6.0021,190.3,190.21,0.78830207]
[1735715194660,6.0021,190.3,190.21,11.41180982]
[1735715196650,6.0021,190.3,190.21,72.20986311]
[1735715196858,6.0021,190.3,190.21,61.58635536]
[1735715197067,0.70870705,190.29,190.21,61.58635536]
[1735715197352,0.70870705,190.29,190.21,60.79805329]
[1735715202355,14.09199836,190.3,190.21,72.20995796]
[1735715202944,0.70870705,190.29,190.21,72.20995796]
[1735715203147,14.09199836,190.3,190.21,61.58645021]
[1735715203644,0.70870705,190.29,190.21,61.58645021]
[1735715203965,14.09199836,190.3,190.21,61.58645021]
[1735715204343,14.09199836,190.3,190.21,72.20995796]
[1735715206455,0.70870705,190.29,190.21,61.58645021]
[1735715207374,0.70870705,190.29,190.21,60.79805329]
[1735715209071,14.09199836,190.3,190.21,60.79805329]
[1735715209448,0.70870705,190.29,190.21,60.79805329]
[1735715214771,0.70870705,190.29,190.2,72.20993832]
[1735715217150,0.70870705,190.29,190.21,23.776884]
[1735715217352,14.09199836,190.3,190.23,23.776884]
[1735715217565,14.09199836,190.3,190.24,0.78823945]
[1735715218447,6.0021,190.3,190.26,10.62350775]
[1735715218655,6.0021,190.3,190.26,11.41162774]
[1735715219754,6.0021,190.3,190.26,0.78811999]
[1735715221079,6.0021,190.3,190.25,60.79805329]
[1735715223272,6.0021,190.3,190.23,11.41177888]
[1735715223460,6.0021,190.3,190.21,10.62350775]
[1735715223666,0.70870705,190.29,190.21,10.62350775]
[1735715224463,6.0021,190.3,190.21,34.40039175]
[1735715224970,0.70870705,190.29,190.21,34.40039175]
[1735715225986,0.70870705,190.29,190.2,61.58631977]
[1735715226186,0.70870705,190.29,190.2,72.20982752]
[1735715226760,6.71080705,190.3,190.2,72.20982752]
[1735715227982,6.0021,190.3,190.2,72.20982752]
[1735715228179,6.0021,190.3,190.21,34.40039175]
[1735715228483,6.0021,190.3,190.24,71.42156104]
[1735715228793,6.0021,190.3,190.25,0.78819233]
[1735715232991,6.0021,190.3,190.24,71.42156104]
[1735715236993,6.0021,190.3,190.25,34.40039175]
[1735715237188,6.0021,190.3,190.25,35.18862159]
[1735715238799,6.0021,190.3,190.25,95.98667488]
[1735715238997,6.0021,190.3,190.25,95.19844504]
[1735715240693,6.0021,190.3,190.26,0.78814339]
[1735715242096,6.0021,190.3,190.25,95.19844504]
[1735715242294,6.0021,190.3,190.25,84.57493729]
[1735715243004,6.0021,190.3,190.25,85.36313121]
[1735715253512,6.0021,190.3,190.25,60.79805329]
[1735715253716,0.70870705,190.29,190.25,60.79805329]
[1735715253920,0.70870705,190.29,190.22,23.776884]
[1735715254304,6.0021,190.3,190.22,23.776884]
[1735715254507,6.0021,190.3,190.21,60.79805329]
[1735715254508,5.85223178,190.29,190.21,60.79805329]
[1735715254820,1.5291,190.28,190.19,23.776884]
[1735715255019,0.70870705,190.27,190.19,23.776884]
[1735715255196,5.85223178,190.27,190.19,23.776884]
[1735715255397,5.85223178,190.27,190.19,0.78845762]
[1735715257307,5.85223178,190.27,190.19,24.56534162]
[1735715257709,5.85223178,190.27,190.19,0.78845762]
[1735715258024,5.85223178,190.27,190.18,71.42156104]
[1735715258225,5.85223178,190.27,190.18,10.62350775]
[1735715259930,6.1925,190.26,190.18,10.62350775]
[1735715260434,11.33602473,190.26,190.18,10.62350775]
[1735715260802,0.70870705,190.25,190.17,61.58655589]
[1735715261009,5.85223178,190.25,190.17,72.21006364]
[1735715262032,5.85223178,190.25,190.17,61.58655589]
[1735715262213,5.85223178,190.25,190.17,72.21006364]
[1735715262622,5.85223178,190.25,190.17,61.58655589]
[1735715262826,5.85223178,190.25,190.17,11.41201035]
[1735715263018,5.85223178,190.25,190.17,0.7885026]
[1735715263216,5.85223178,190.25,190.17,11.41201035]
[1735715263715,5.85223178,190.25,190.14,61.58662797]
[1735715263927,1.6652,190.24,190.15,10.62350775]
[1735715264106,1.6652,190.24,190.17,10.62350775]
[1735715264306,5.14352473,190.23,190.18,11.41202333]
[1735715266116,5.14352473,190.23,190.18,0.78851558]
[1735715266631,5.14352473,190.23,190.17,71.42156104]
[1735715267317,5.14352473,190.23,190.17,72.21008882]
[1735715268832,5.85223178,190.23,190.16,10.62350775]
[1735715269234,5.85223178,190.23,190.16,20.0]
[1735715269715,5.14352473,190.23,190.16,30.62350775]
[1735715269914,5.14352473,190.23,190.17,0.7885455]
[1735715273034,5.14352473,190.23,190.17,11.41205325]
[1735715276419,5.14352473,190.23,190.19,10.62350775]
[1735715276614,1.6652,190.24,190.2,10.62350775]
[1735715281321,1.6652,190.24,190.19,72.20999636]
[1735715281522,2.37390705,190.24,190.19,60.79805329]
[1735715281722,7.51743178,190.24,190.19,60.79805329]
[1735715282532,5.14352473,190.23,190.19,60.79805329]
[1735715283447,5.14352473,190.23,190.19,71.42156104]
[1735715283946,5.14352473,190.23,190.19,10.62350775]
[1735715284627,5.14352473,190.23,190.19,24.56533436]
[1735715284832,6.1925,190.26,190.2,10.62350775]
[1735715285042,6.1925,190.26,190.19,24.56533436]
[1735715285247,6.1925,190.26,190.2,10.62350775]
[1735715286257,6.1925,190.26,190.21,10.62350775]
[1735715287534,6.1925,190.26,190.2,10.62350775]
[1735715287851,6.1925,190.26,190.19,95.19844504]
[1735715288048,11.33602473,190.26,190.19,95.19844504]
[1735715292759,11.33602473,190.26,190.19,60.79805329]
[1735715292976,0.70870705,190.25,190.18,10.62350775]
[1735715293258,11.33602473,190.26,190.2,10.62350775]
[1735715295663,6.1925,190.26,190.25,23.776884]
[1735715295845,1.6393,190.29,190.25,34.40039175]
[1735715296044,11.67932473,190.32,190.26,10.62350775]
[1735715301666,11.67932473,190.32,190.25,35.18861513]
[1735715303468,5.14352473,190.32,190.29,10.62350775]
[1735715306972,1.6634,190.34,190.29,10.62350775]
[1735715308271,1.6634,190.34,190.28,34.40039175]
[1735715308444,11.67932473,190.36,190.3,34.40039175]
[1735715308648,6.5358,190.36,190.31,11.4114703]
[1735715308965,2.27400705,190.39,190.31,11.4114703]
[1735715312480,1.5653,190.39,190.32,95.19844504]
[1735715312665,1.5653,190.39,190.33,11.41137403]
[1735715312855,1.5653,190.39,190.33,0.78786628]
[1735715313055,1.5653,190.39,190.32,84.57493729]
[1735715313056,2.27400705,190.39,190.32,84.57493729]
[1735715314967,7.41753178,190.39,190.32,60.79805329]
[1735715315283,6.70882473,190.39,190.32,60.79805329]
[1735715315458,6.70882473,190.39,190.33,23.776884]
[1735715315654,6.70882473,190.39,190.33,34.40039175]
[1735715316880,6.70882473,190.39,190.33,95.19844504]
[1735715319861,6.70882473,190.39,190.33,84.57493729]
[1735715320261,6.70882473,190.39,190.33,95.19844504]
[1735715323092,6.70882473,190.39,190.33,10.62350775]
[1735715325989,6.89021503,190.44,190.35,95.19844504]
[1735715326187,20.0,190.43,190.35,95.19844504]
[1735715326370,20.0,190.43,190.36,10.62350775]
[1735715328988,20.0,190.43,190.36,71.42156104]
[1735715330089,20.0,190.43,190.36,60.79805329]
[1735715343496,0.70870705,190.44,190.37,95.19844504]
[1735715343683,0.70870705,190.45,190.37,95.19844504]
[1735715345785,0.70870705,190.45,190.37,84.57493729]
[1735715345984,0.70870705,190.45,190.37,95.19844504]
[1735715348411,0.70870705,190.45,190.38,10.62350775]
[1735715350018,0.70870705,190.45,190.38,71.42156104]
[1735715351591,5.14352473,190.44,190.38,60.79805329]
[1735715354228,5.14352473,190.44,190.38,71.42156104]
[1735715354918,5.14352473,190.44,190.38,60.79805329]
[1735715355115,5.14352473,190.44,190.38,71.42156104]
[1735715355521,0.70870705,190.43,190.38,60.79805329]
[1735715355817,1.6594,190.41,190.38,60.79805329]
[1735715356010,0.70870705,190.41,190.34,71.42156104]
[1735715356211,6.79830705,190.42,190.35,10.62350775]
[1735715356528,6.79830705,190.42,190.34,71.42156104]
[1735715356714,6.79830705,190.42,190.34,60.79805329]
[1735715356925,1.71126576,190.41,190.34,60.79805329]
[1735715357220,0.70870705,190.4,190.32,71.42156104]
[1735715357614,20.0,190.39,190.32,60.79805329]
[1735715357813,0.70870705,190.38,190.32,60.79805329]
[1735715367339,0.70870705,190.38,190.31,10.62350775]
[1735715371141,0.70870705,190.38,190.31,71.42156104]
[1735715375273,1.71126576,190.4,190.33,10.62350775]
[1735715375444,1.71126576,190.4,190.35,10.62350775]
[1735715375640,6.0896,190.42,190.35,10.62350775]
[1735715378168,0.70870705,190.41,190.35,10.62350775]
[1735715378885,6.0896,190.42,190.37,10.62350775]
[1735715381145,6.0896,190.42,190.36,10.62350775]
[1735715383147,6.0896,190.42,190.36,71.42156104]
[1735715383962,0.70870705,190.41,190.36,71.42156104]
[1735715384470,0.70870705,190.41,190.36,60.79805329]
[1735715386265,0.70870705,190.41,190.37,10.62350775]
[1735715386477,0.70870705,190.43,190.37,10.62350775]
[1735715388453,0.70870705,190.43,190.38,10.62350775]
[1735715388660,2.41997281,190.44,190.38,10.62350775]
[1735715391182,2.41997281,190.44,190.37,10.62350775]
[1735715392092,2.41997281,190.44,190.37,71.42156104]
[1735715398683,1.71126576,190.44,190.37,71.42156104]
[1735715398881,1.71126576,190.44,190.38,10.62350775]
[1735715400685,1.71126576,190.44,190.37,71.42156104]
[1735715400886,1.5899,190.42,190.37,60.79805329]
[1735715401190,0.70870705,190.41,190.35,95.19844504]
[1735715401572,0.70870705,190.41,190.35,71.42156104]
[1735715402584,1.5899,190.42,190.36,10.62350775]
[1735715403085,0.70870705,190.41,190.35,60.79805329]
[1735715403273,0.70870705,190.41,190.35,71.42156104]
[1735715404166,0.70870705,190.41,190.35,10.62350775]
[1735715405494,0.70870705,190.41,190.33,61.58594216]
[1735715405893,0.70870705,190.41,190.35,10.62350775]
[1735715407808,0.70870705,190.41,190.36,10.62350775]
[1735715408912,1.5899,190.42,190.37,10.62350775]
[1735715409091,1.5899,190.42,190.37,11.41139547]
[1735715409502,1.5899,190.42,190.38,10.62350775]
[1735715412378,1.71126576,190.44,190.38,10.62350775]
[1735715413093,1.71126576,190.44,190.38,71.42156104]
[1735715413698,1.71126576,190.44,190.38,60.79805329]
[1735715416600,6.86854836,190.46,190.39,95.98615057]
[1735715416808,6.86854836,190.46,190.39,95.19844504]
[1735715418088,6.0622,190.47,190.4,10.62350775]
[1735715418290,6.0622,190.47,190.41,10.62350775]
[1735715422100,6.0622,190.47,190.41,71.42156104]
[1735715429407,6.0622,190.47,190.41,60.79805329]
[1735715429790,6.0622,190.47,190.41,71.42156104]
[1735715435733,6.0622,190.47,190.41,60.79805329]
[1735715439128,6.0622,190.47,190.41,71.42156104]
[1735715442529,6.0622,190.47,190.41,60.79805329]
[1735715444017,7.28392567,190.46,190.41,60.79805329]
[1735715444223,13.77691848,190.46,190.41,60.79805329]
[1735715445628,26.90301848,190.46,190.41,60.79805329]
[1735715448530,7.9733,190.42,190.33,60.79805329]
[1735715448708,20.0,190.39,190.31,60.79805329]
[1735715448910,0.70870705,190.38,190.31,60.79805329]
[1735715449418,0.70870705,190.4,190.31,60.79805329]
[1735715451739,6.57521862,190.39,190.31,60.79805329]
[1735715451943,0.70870705,190.38,190.31,60.79805329]
[1735715452937,20.70870705,190.38,190.3,60.79805329]
[1735715456040,27.28392567,190.38,190.3,60.79805329]
[1735715457142,14.54851862,190.37,190.28,71.42156104]
[1735715457334,0.70870705,190.36,190.28,71.42156104]
[1735715458142,0.70870705,190.36,190.28,60.79805329]
[1735715458341,7.28392567,190.36,190.28,60.79805329]
[1735715458648,7.28392567,190.36,190.27,71.42156104]
[1735715460452,0.27957187,190.35,190.27,60.79805329]
[1735715460743,6.57521862,190.35,190.26,71.42156104]
[1735715460932,0.70870705,190.34,190.26,71.42156104]
[1735715461827,0.70870705,190.34,190.27,10.62350775]
[1735715466061,0.70870705,190.34,190.26,60.79805329]
[1735715466238,0.70870705,190.34,190.27,10.62350775]
[1735715470873,0.70870705,190.34,190.26,71.42156104]
[1735715471338,6.57521862,190.34,190.26,71.42156104]
[1735715471631,0.70870705,190.33,190.26,71.42156104]
[1735715472060,6.0673,190.32,190.26,60.79805329]
[1735715472241,2.36610705,190.31,190.24,60.79805329]
[1735715473463,2.36610705,190.31,190.24,71.42156104]
[1735715473664,2.36610705,190.31,190.25,10.62350775]
[1735715474159,2.36610705,190.31,190.23,0.78826824]
[1735715474365,2.36610705,190.31,190.24,10.62350775]
[1735715476964,0.70870705,190.31,190.25,10.62350775]
[1735715477172,6.29661697,190.32,190.25,10.62350775]
[1735715478350,0.70870705,190.31,190.25,10.62350775]
[1735715479363,6.4196,190.3,190.25,10.62350775]
[1735715479570,6.4196,190.3,190.24,10.62350775]
[1735715482264,6.4196,190.3,190.24,71.42156104]
[1735715482450,6.4196,190.3,190.25,10.62350775]
[1735715483449,6.4196,190.3,190.24,71.42156104]
[1735715483983,6.4196,190.3,190.22,23.776884]
[1735715483984,0.70870705,190.29,190.22,60.79805329]
[1735715484269,5.97594893,190.29,190.22,60.79805329]
[1735715484855,5.97594893,190.29,190.2,60.79805329]
[1735715485271,5.97594893,190.29,190.2,71.42156104]
[1735715485749,1.655,190.25,190.16,61.58656288]
[1735715485949,6.4689,190.24,190.17,10.62350775]
[1735715486153,6.4689,190.24,190.18,10.62350775]
[1735715490173,6.4689,190.24,190.17,23.776884]
[1735715490376,6.4689,190.24,190.17,34.40039175]
[1735715491383,6.4689,190.24,190.17,95.19844504]
[1735715499080,0.70870705,190.23,190.17,60.79805329]
[1735715499661,12.44484893,190.24,190.17,60.79805329]
[1735715499992,12.44484893,190.24,190.16,71.42156104]
[1735715500482,12.44484893,190.24,190.16,60.79805329]
[1735715500694,7.17760705,190.24,190.16,60.79805329]
[1735715500989,7.17760705,190.24,190.13,23.776884]
[1735715500990,18.40914188,190.23,190.13,23.776884]
[1735715501194,0.70870705,190.22,190.12,71.42156104]
[1735715501563,5.97594893,190.22,190.12,71.42156104]
[1735715501763,5.97594893,190.22,190.13,23.776884]
[1735715502462,5.97594893,190.22,190.13,34.40039175]
[1735715504284,7.8348,190.21,190.13,84.57493729]
[1735715504461,5.97594893,190.2,190.13,60.79805329]
[1735715505896,13.1447,190.19,190.09,0.78879837]
[1735715506187,12.24564893,190.18,190.08,73.93995329]
[1735715506583,12.24564893,190.18,190.08,60.79805329]
[1735715507169,12.24564893,190.18,190.09,10.62350775]
[1735715508878,12.24564893,190.18,190.1,10.62350775]
[1735715512100,12.24564893,190.18,190.09,23.776884]
[1735715512270,12.24564893,190.18,190.1,71.42156104]
[1735715513708,12.24564893,190.18,190.1,60.79805329]
[1735715513907,1.5651,190.17,190.1,60.79805329]
[1735715514072,0.70870705,190.16,190.1,60.79805329]
[1735715514394,5.97594893,190.16,190.1,60.79805329]
[1735715515296,5.97594893,190.16,190.07,71.42156104]
[1735715515795,5.97594893,190.16,190.08,10.62350775]
[1735715516473,5.97594893,190.16,190.07,60.79805329]
[1735715519379,5.97594893,190.16,190.07,71.42156104]
[1735715519580,20.0,190.15,190.07,71.42156104]
[1735715519774,0.70870705,190.14,190.07,71.42156104]
[1735715521576,2.27380705,190.17,190.08,10.62350775]
[1735715521777,2.27380705,190.17,190.09,10.62350775]
[1735715522790,1.5651,190.17,190.11,10.62350775]
[1735715522993,1.5651,190.17,190.13,10.62350775]
[1735715523376,1.5651,190.17,190.11,60.79805329]
[1735715523576,1.5651,190.17,190.11,71.42156104]
[1735715524409,1.5651,190.17,190.11,60.79805329]
[1735715524582,1.5651,190.17,190.11,71.42156104]
[1735715525413,1.5651,190.17,190.13,10.62350775]
[1735715526100,1.5651,190.17,190.12,10.62350775]
[1735715526301,1.5651,190.17,190.11,71.42156104]
[1735715526515,2.27380705,190.17,190.11,60.79805329]
[1735715530323,2.27380705,190.17,190.1,10.62350775]
[1735715532922,2.27380705,190.17,190.09,0.7888518]
[1735715533299,2.27380705,190.17,190.09,61.58690509]
[1735715534613,2.27380705,190.17,190.09,60.79805329]
[1735715534815,8.84902715,190.17,190.09,60.79805329]
[1735715536022,8.84902715,190.17,190.07,60.79805329]
[1735715536322,6.5752201,190.16,190.07,60.79805329]
[1735715536530,0.70870705,190.15,190.07,60.79805329]
[1735715537416,7.28392715,190.16,190.08,10.62350775]
[1735715538228,7.28392715,190.16,190.07,72.21052184]
[1735715538924,7.28392715,190.16,190.08,10.62350775]
[1735715539097,6.5752201,190.16,190.09,11.41238758]
[1735715539302,6.5752201,190.16,190.09,72.21044087]
[1735715539815,1.5651,190.17,190.11,71.42156104]
[1735715540018,1.5651,190.17,190.12,11.41224289]
[1735715541619,6.2697,190.18,190.12,11.41224289]
[1735715541919,6.2697,190.18,190.13,34.40039175]
[1735715542128,6.5752201,190.21,190.15,10.62350775]
[1735715542302,6.5752201,190.21,190.16,11.41208652]
[1735715543102,6.5752201,190.21,190.16,0.78857877]
[1735715543297,6.5752201,190.21,190.14,72.21016132]
[1735715543711,6.5752201,190.21,190.14,60.79805329]
[1735715544430,0.70870705,190.2,190.14,60.79805329]
[1735715544931,6.5752201,190.21,190.14,60.79805329]
[1735715545330,6.5752201,190.21,190.14,61.58669085]
[1735715547630,6.5752201,190.21,190.14,60.79805329]
[1735715557241,0.70870705,190.2,190.14,60.79805329]
[1735715557617,7.28392715,190.21,190.14,60.79805329]
[1735715558940,6.5752201,190.21,190.15,0.78868699]
[1735715560318,6.5752201,190.21,190.15,61.58674028]
[1735715566044,0.70870705,190.2,190.15,60.79805329]
[1735715566561,0.70870705,190.2,190.12,61.58667976]
[1735715566749,0.70870705,190.2,190.12,60.79805329]
[1735715567048,7.28392715,190.21,190.12,61.58683082]
[1735715567755,6.5752201,190.21,190.12,72.21033857]
[1735715568132,6.5752201,190.21,190.12,61.58683082]
[1735715569935,6.5752201,190.21,190.12,72.21033857]
[1735715570937,6.5752201,190.21,190.12,61.58683082]
[1735715574262,0.70870705,190.2,190.12,61.58683082]
[1735715574462,0.70870705,190.2,190.12,60.79805329]
[1735715574762,7.28392715,190.21,190.12,60.79805329]
[1735715574963,7.28392715,190.21,190.13,0.78870769]
[1735715575463,7.28392715,190.21,190.13,61.58676098]
[1735715576139,6.5752201,190.21,190.14,23.776884]
[1735715576361,6.5752201,190.21,190.15,0.78861202]
[1735715577152,6.5752201,190.21,190.14,23.776884]
[1735715578364,6.5752201,190.21,190.14,84.57493729]
[1735715582343,6.5752201,190.21,190.15,0.78862513]
[1735715584562,6.5752201,190.21,190.15,61.58667842]
[1735715586039,6.5752201,190.21,190.16,23.776884]
[1735715586348,12.8771201,190.26,190.17,61.5866397]
[1735715588062,12.8771201,190.26,190.18,84.57493729]
[1735715588244,12.8771201,190.26,190.19,11.41191304]
[1735715588753,12.8771201,190.26,190.19,0.78840529]
[1735715589346,0.70870705,190.25,190.18,60.79805329]
[1735715589659,13.58582715,190.26,190.18,60.79805329]
[1735715589866,12.8771201,190.26,190.18,60.79805329]
[1735715590068,12.8771201,190.26,190.18,61.58652414]
[1735715591074,0.70870705,190.25,190.18,60.79805329]
[1735715591466,12.8771201,190.26,190.18,60.79805329]
[1735715591778,12.8771201,190.26,190.19,0.78846017]
[1735715592569,0.70870705,190.25,190.18,60.79805329]
[1735715592959,13.58582715,190.26,190.18,60.79805329]
[1735715596153,20.39638569,190.26,190.16,60.79805329]
[1735715596478,8.39695854,190.25,190.16,60.79805329]
[1735715596663,0.70870705,190.24,190.16,60.79805329]
[1735715596865,7.28392715,190.24,190.16,60.79805329]
[1735715599273,7.28392715,190.24,190.13,60.79805329]
[1735715600980,7.28392715,190.24,190.14,0.7886533]
[1735715602476,7.28392715,190.24,190.14,61.58670659]
[1735715605594,6.0976,190.23,190.14,61.58670659]
[1735715605796,0.70870705,190.22,190.14,61.58670659]
[1735715608168,0.70870705,190.22,190.14,60.79805329]
[1735715619189,6.0976,190.23,190.15,0.78866199]
[1735715620490,6.0976,190.23,190.15,61.58671528]
[1735715621891,6.0976,190.23,190.16,23.776884]
[1735715622071,6.0976,190.23,190.17,61.58656729]
[1735715624970,6.0976,190.23,190.17,60.79805329]
[1735715629974,6.0976,190.23,190.17,61.58659812]
[1735715631777,6.0976,190.23,190.18,23.776884]
[1735715631983,6.4737,190.28,190.2,23.776884]
[1735715632197,6.4737,190.28,190.21,0.7883698]
[1735715633798,7.18240705,190.28,190.19,23.776884]
[1735715634116,6.5752201,190.27,190.18,60.79805329]
[1735715634281,0.70870705,190.26,190.18,60.79805329]
[1735715634682,6.5752201,190.25,190.18,60.79805329]
[1735715636603,6.4737,190.28,190.22,10.62350775]
[1735715636785,6.4737,190.28,190.23,0.78826563]
[1735715638806,6.3003,190.34,190.23,72.20982667]
[1735715638993,0.70870705,190.33,190.23,72.20982667]
[1735715640487,0.70870705,190.33,190.24,23.776884]
[1735715640802,0.70870705,190.33,190.25,61.58626089]
[1735715641598,0.70870705,190.33,190.25,60.79805329]
[1735715641909,7.51926559,190.33,190.25,60.79805329]
[1735715644586,7.51926559,190.33,190.22,61.58636615]
[1735715645711,7.51926559,190.33,190.23,23.776884]
[1735715645894,7.51926559,190.33,190.24,0.78822327]
[1735715647589,7.51926559,190.33,190.24,61.58627656]
[1735715652290,7.51926559,190.33,190.24,60.79805329]
[1735715652509,1.5043,190.32,190.24,60.79805329]
[1735715652802,0.70870705,190.31,190.24,60.79805329]
[1735715654007,0.70870705,190.31,190.2,61.58637924]
[1735715654220,6.1337,190.3,190.2,61.58637924]
[1735715654430,0.70870705,190.29,190.2,61.58637924]
[1735715656105,6.1337,190.27,190.17,60.79805329]
[1735715656292,7.51926559,190.26,190.17,60.79805329]
[1735715678314,0.70870705,190.26,190.17,60.79805329]
[1735715678920,6.1337,190.27,190.18,35.18889442]
[1735715680642,6.1337,190.27,190.18,95.98694771]
[1735715680836,6.1337,190.27,190.18,95.19844504]
[1735715681848,6.1337,190.27,190.19,0.78841761]
[1735715683646,6.1337,190.27,190.19,61.5864709]
[1735715684150,6.84240705,190.27,190.19,61.5864709]
[1735715688056,6.84240705,190.27,190.19,60.79805329]
[1735715689671,6.84240705,190.27,190.16,61.58656356]
[1735715705575,6.84240705,190.27,190.17,23.776884]
[1735715705761,6.1337,190.27,190.19,23.776884]
[1735715705962,6.1337,190.27,190.2,61.58641394]
[1735715708177,6.1337,190.27,190.2,72.20992169]
[1735715711252,6.1337,190.27,190.21,95.19844504]
[1735715711459,6.1337,190.27,190.22,0.78826003]
[1735715715177,6.3446,190.32,190.23,84.57493729]
[1735715715365,6.3446,190.32,190.24,0.78817201]